[Event "Sverigemastarklassen 2025"]
[Site "Uppsala, Sweden"]
[Date "2025.07.03"]
[Round "6.2"]
[White "Hillarp-Persson, Tiger"]
[Black "Lokander, Martin"]
[Result "0-1"]
[TimeControl "90 min for 40 move + 30 min with an increment of 30 sec starting move 1"]
[WhiteTitle "GM"]
[BlackTitle "IM"]
[WhiteFideId "1700812"]
[BlackFideId "1709569"]
[WhiteElo "2445"]
[BlackElo "2446"]

1. Nf3 {[%clk 01:30:57]} {[%emt 00:00:02]} d5 {[%clk 01:30:45]} {[%emt
00:00:15]} 2. g3 {[%clk 01:31:09]} {[%emt 00:00:18]} Nd7 {[%clk 01:30:26]}
{[%emt 00:00:49]} 3. d4 {[%clk 01:31:30]} {[%emt 00:00:08]} Ngf6 {[%clk
01:29:11]} {[%emt 00:01:46]} 4. c4 {[%clk 01:25:18]} {[%emt 00:06:42]} e6
{[%clk 01:27:52]} {[%emt 00:01:49]} 5. Bg2 {[%clk 01:25:32]} {[%emt 00:00:16]}
c6 {[%clk 01:27:30]} {[%emt 00:00:52]} 6. O-O {[%clk 01:22:15]} {[%emt
00:03:47]} Bd6 {[%clk 01:26:27]} {[%emt 00:01:33]} 7. b3 {[%clk 01:09:59]}
{[%emt 00:12:46]} O-O {[%clk 01:26:10]} {[%emt 00:00:47]} 8. Bb2 {[%clk
01:07:08]} {[%emt 00:03:20]} a5 {[%clk 01:26:33]} {[%emt 00:00:08]} 9. Nc3
{[%clk 01:07:25]} {[%emt 00:00:13]} Ne4 {[%clk 01:27:00]} {[%emt 00:00:03]} 10.
a4 {[%clk 00:56:16]} {[%emt 00:11:39]} f5 {[%clk 01:21:47]} {[%emt 00:05:43]}
11. e3 {[%clk 00:54:54]} {[%emt 00:01:52]} Qe8 {[%clk 01:16:37]} {[%emt
00:05:41]} 12. Ne2 {[%clk 00:49:52]} {[%emt 00:05:31]} b6 {[%clk 01:02:46]}
{[%emt 00:14:22]} 13. Rc1 {[%clk 00:40:43]} {[%emt 00:09:38]} Bb7 {[%clk
00:56:08]} {[%emt 00:07:09]} 14. Ne1 {[%clk 00:39:33]} {[%emt 00:01:39]} Rd8
{[%clk 00:53:19]} {[%emt 00:03:19]} 15. Nd3 {[%clk 00:39:31]} {[%emt 00:00:31]}
dxc4 {[%clk 00:48:19]} {[%emt 00:05:30]} 16. bxc4 {[%clk 00:39:49]} {[%emt
00:00:13]} c5 {[%clk 00:48:30]} {[%emt 00:00:20]} 17. Qc2 {[%clk 00:36:26]}
{[%emt 00:03:51]} Bc6 {[%clk 00:45:42]} {[%emt 00:03:18]} 18. f3 {[%clk
00:29:49]} {[%emt 00:07:07]} Ng5 {[%clk 00:45:07]} {[%emt 00:01:05]} 19. Nc3
{[%clk 00:27:43]} {[%emt 00:02:36]} cxd4 {[%clk 00:40:41]} {[%emt 00:04:57]} 20.
exd4 {[%clk 00:28:04]} {[%emt 00:00:09]} f4 {[%clk 00:40:58]} {[%emt 00:00:13]}
21. gxf4 {[%clk 00:18:57]} {[%emt 00:09:37]} Qh5 {[%clk 00:39:32]} {[%emt
00:01:56]} 22. Ne4 {[%clk 00:11:44]} {[%emt 00:07:43]} Bxf4 {[%clk 00:36:07]}
{[%emt 00:03:56]} 23. Nxf4 {[%clk 00:12:04]} {[%emt 00:00:09]} Rxf4 {[%clk
00:36:29]} {[%emt 00:00:08]} 24. Qc3 {[%clk 00:05:54]} {[%emt 00:06:39]} Nf6
{[%clk 00:33:03]} {[%emt 00:03:56]} 25. Qe3 {[%clk 00:03:39]} {[%emt 00:02:46]}
e5 {[%clk 00:23:55]} {[%emt 00:09:39]} 26. d5 {[%clk 00:00:44]} {[%emt
00:03:24]} Bd7 {[%clk 00:10:49]} {[%emt 00:13:36]} 27. Ng3 {[%clk 00:00:47]}
{[%emt 00:00:26]} Qh6 {[%clk 00:07:46]} {[%emt 00:03:34]} 28. Qxb6 {[%clk
00:01:08]} {[%emt 00:00:08]} Re8 {[%clk 00:07:17]} {[%emt 00:01:00]} 29. Rce1
{[%clk 00:01:28]} {[%emt 00:00:10]} Nh3+ {[%clk 00:06:09]} {[%emt 00:01:39]} 30.
Bxh3 {[%clk 00:01:51]} {[%emt 00:00:06]} Qxh3 {[%clk 00:05:52]} {[%emt
00:00:47]} 31. Rxe5 {[%clk 00:01:39]} {[%emt 00:00:42]} Rxc4 {[%clk 00:04:30]}
{[%emt 00:01:53]} 32. Rxe8+ {[%clk 00:01:01]} {[%emt 00:01:07]} Nxe8 {[%clk
00:04:56]} {[%emt 00:00:03]} 33. Qb3 {[%clk 00:01:03]} {[%emt 00:00:29]} Rh4
{[%clk 00:03:14]} {[%emt 00:02:11]} 34. Rf2 {[%clk 00:01:23]} {[%emt 00:00:10]}
Bxa4 {[%clk 00:03:16]} {[%emt 00:00:29]} 35. Qc3 {[%clk 00:01:43]} {[%emt
00:00:10]} Qd7 {[%clk 00:03:03]} {[%emt 00:00:43]} 36. Re2 {[%clk 00:01:39]}
{[%emt 00:00:34]} Nf6 {[%clk 00:03:02]} {[%emt 00:00:31]} 37. Re5 {[%clk
00:01:30]} {[%emt 00:00:38]} Qa7+ {[%clk 00:02:37]} {[%emt 00:00:56]} 38. Kg2
{[%clk 00:01:40]} {[%emt 00:00:20]} Bd7 {[%clk 00:02:03]} {[%emt 00:01:04]} 39.
Nf5 {[%clk 00:01:05]} {[%emt 00:01:05]} Bxf5 {[%clk 00:00:55]} {[%emt
00:01:38]} 40. Rxf5 {[%clk 00:01:28]} {[%emt 00:00:07]} Qd7 {[%clk 00:00:38]}
{[%emt 00:00:48]} 41. Qe5 {[%clk 00:26:39]} {[%emt 00:05:18]} Rc4 {[%clk
00:28:34]} {[%emt 00:02:34]} 42. Rxf6 {[%clk 00:13:52]} {[%emt 00:13:17]} Rc2+
{[%clk 00:26:21]} {[%emt 00:02:43]} 43. Kh1 {[%clk 00:14:11]} {[%emt 00:00:11]}
gxf6 {[%clk 00:26:14]} {[%emt 00:00:37]} 44. Qxf6 {[%clk 00:14:33]} {[%emt
00:00:07]} Rxb2 {[%clk 00:25:46]} {[%emt 00:00:59]} 45. Qxb2 {[%clk 00:14:56]}
{[%emt 00:00:07]} Qxd5 {[%clk 00:26:03]} {[%emt 00:00:14]} 46. Kg2 {[%clk
00:14:52]} {[%emt 00:00:32]} Kf7 {[%clk 00:24:48]} {[%emt 00:01:45]} 47. Qb8
{[%clk 00:12:12]} {[%emt 00:03:10]} Qg5+ {[%clk 00:23:08]} {[%emt 00:02:10]} 48.
Kf2 {[%clk 00:12:33]} {[%emt 00:00:08]} Qc5+ {[%clk 00:23:28]} {[%emt
00:00:11]} 49. Kg2 {[%clk 00:12:46]} {[%emt 00:00:16]} Qc2+ {[%clk 00:23:50]}
{[%emt 00:00:08]} 50. Kg3 {[%clk 00:13:10]} {[%emt 00:00:06]} a4 {[%clk
00:24:09]} {[%emt 00:00:12]} 51. Kg4 {[%clk 00:05:04]} {[%emt 00:08:34]} Ke7
{[%clk 00:20:14]} {[%emt 00:04:26]} 52. f4 {[%clk 00:02:06]} {[%emt 00:03:28]}
Qg6+ {[%clk 00:20:33]} {[%emt 00:00:12]} 53. Kh4 {[%clk 00:02:02]} {[%emt
00:00:33]} Qe4 {[%clk 00:20:28]} {[%emt 00:00:35]} 54. Kg5 {[%clk 00:01:53]}
{[%emt 00:00:40]} Qg2+ {[%clk 00:19:26]} {[%emt 00:01:31]} 55. Kf5 {[%clk
00:01:38]} {[%emt 00:00:45]} Qd5+ {[%clk 00:18:51]} {[%emt 00:01:05]} 56. Kg4
{[%clk 00:01:54]} {[%emt 00:00:13]} a3 {[%clk 00:18:00]} {[%emt 00:01:23]} 57.
f5 {[%clk 00:01:05]} {[%emt 00:01:19]} a2 {[%clk 00:16:41]} {[%emt 00:01:49]}
58. Qa7+ {[%clk 00:01:12]} {[%emt 00:00:23]} Kf6 {[%clk 00:16:18]} {[%emt
00:00:53]} 59. Qb6+ {[%clk 00:00:57]} {[%emt 00:00:45]} Ke5 {[%clk 00:16:37]}
{[%emt 00:00:10]} 60. Qb8+ {[%clk 00:00:42]} {[%emt 00:00:45]} Ke4 {[%clk
00:16:10]} {[%emt 00:00:57]} 61. Qe8+ {[%clk 00:00:34]} {[%emt 00:00:38]} Kd3
{[%clk 00:16:28]} {[%emt 00:00:12]} 0-1

[Event "Sverigemastarklassen 2025"]
[Site "Uppsala, Sweden"]
[Date "2025.07.03"]
[Round "6.3"]
[White "Galperin, Platon"]
[Black "Storme, Isak"]
[Result "1-0"]
[TimeControl "90 min for 40 move + 30 min with an increment of 30 sec starting move 1"]
[WhiteTitle "GM"]
[BlackTitle "IM"]
[WhiteFideId "14165414"]
[BlackFideId "1728113"]
[WhiteElo "2500"]
[BlackElo "2466"]

1. c4 {[%clk 01:30:47]} {[%emt 00:00:11]} e6 {[%clk 01:30:54]} {[%emt
00:00:06]} 2. g3 {[%clk 01:31:11]} {[%emt 00:00:06]} d5 {[%clk 01:31:17]}
{[%emt 00:00:07]} 3. Bg2 {[%clk 01:31:38]} {[%emt 00:00:04]} Nf6 {[%clk
01:31:36]} {[%emt 00:00:11]} 4. Nf3 {[%clk 01:31:49]} {[%emt 00:00:18]} dxc4
{[%clk 01:31:43]} {[%emt 00:00:23]} 5. Qa4+ {[%clk 01:32:13]} {[%emt 00:00:07]}
Bd7 {[%clk 01:32:02]} {[%emt 00:00:10]} 6. Qxc4 {[%clk 01:32:39]} {[%emt
00:00:05]} c5 {[%clk 01:32:24]} {[%emt 00:00:08]} 7. Ne5 {[%clk 01:33:06]}
{[%emt 00:00:02]} Qc8 {[%clk 01:32:42]} {[%emt 00:00:12]} 8. Qd3 {[%clk
01:33:34]} {[%emt 00:00:03]} Nc6 {[%clk 01:31:53]} {[%emt 00:01:18]} 9. Nxd7
{[%clk 01:33:58]} {[%emt 00:00:06]} Nxd7 {[%clk 01:32:12]} {[%emt 00:00:11]} 10.
b3 {[%clk 01:34:24]} {[%emt 00:00:04]} Be7 {[%clk 01:29:37]} {[%emt 00:03:05]}
11. Bb2 {[%clk 01:34:50]} {[%emt 00:00:04]} O-O {[%clk 01:27:17]} {[%emt
00:02:49]} 12. Nc3 {[%clk 01:35:14]} {[%emt 00:00:07]} Rd8 {[%clk 01:19:39]}
{[%emt 00:08:07]} 13. Rc1 {[%clk 01:35:34]} {[%emt 00:00:11]} Nf6 {[%clk
01:19:00]} {[%emt 00:01:08]} 14. Qb1 {[%clk 01:35:46]} {[%emt 00:00:18]} Qd7
{[%clk 01:18:47]} {[%emt 00:00:44]} 15. d3 {[%clk 01:36:11]} {[%emt 00:00:06]}
Rac8 {[%clk 01:18:46]} {[%emt 00:00:30]} 16. O-O {[%clk 01:36:36]} {[%emt
00:00:05]} b6 {[%clk 01:16:32]} {[%emt 00:02:44]} 17. Rfd1 {[%clk 01:35:38]}
{[%emt 00:01:29]} h6 {[%clk 01:11:22]} {[%emt 00:05:40]} 18. e3 {[%clk
01:32:41]} {[%emt 00:03:26]} Ne8 {[%clk 01:01:44]} {[%emt 00:10:07]} 19. Rd2
{[%clk 01:26:38]} {[%emt 00:06:34]} Bf6 {[%clk 00:53:51]} {[%emt 00:08:23]} 20.
Rcd1 {[%clk 01:13:12]} {[%emt 00:13:57]} Nd6 {[%clk 00:52:51]} {[%emt
00:01:30]} 21. h3 {[%clk 00:53:59]} Nf5 {[%clk 00:52:03]} {[%emt 00:20:59]} 22.
d4 {[%clk 00:51:17]} cxd4 {[%clk 00:49:53]} {[%emt 00:05:54]} 23. Ne4 {[%clk
00:51:40]} Be7 {[%clk 00:43:02]} {[%emt 00:07:27]} 24. a3 {[%clk 00:43:18]}
{[%emt 00:08:52]} e5 {[%clk 00:40:59]} {[%emt 00:02:33]} 25. b4 {[%clk
00:39:43]} {[%emt 00:04:05]} Qe6 {[%clk 00:39:22]} {[%emt 00:02:07]} 26. g4
{[%clk 00:40:02]} {[%emt 00:00:12]} Nh4 {[%clk 00:35:12]} {[%emt 00:04:39]} 27.
exd4 {[%clk 00:40:26]} {[%emt 00:00:06]} exd4 {[%clk 00:32:12]} {[%emt
00:03:31]} 28. Bxd4 {[%clk 00:30:27]} {[%emt 00:10:28]} Nxd4 {[%clk 00:25:43]}
{[%emt 00:07:00]} 29. Rxd4 {[%clk 00:30:54]} {[%emt 00:00:04]} Rxd4 {[%clk
00:25:57]} {[%emt 00:00:16]} 30. Rxd4 {[%clk 00:31:22]} {[%emt 00:00:01]} Qe5
{[%clk 00:25:33]} {[%emt 00:00:54]} 31. Rd1 {[%clk 00:31:13]} {[%emt 00:00:38]}
Qf4 {[%clk 00:22:48]} {[%emt 00:03:16]} 32. Ng3 {[%clk 00:28:27]} {[%emt
00:03:16]} g6 {[%clk 00:13:55]} {[%emt 00:09:23]} 33. Bd5 {[%clk 00:27:57]}
{[%emt 00:00:59]} a5 {[%clk 00:12:50]} {[%emt 00:01:36]} 34. bxa5 {[%clk
00:24:33]} {[%emt 00:03:54]} bxa5 {[%clk 00:12:22]} {[%emt 00:00:59]} 35. Qb2
{[%clk 00:23:33]} {[%emt 00:01:30]} Rb8 {[%clk 00:07:48]} {[%emt 00:05:04]} 36.
Qc3 {[%clk 00:21:51]} {[%emt 00:02:11]} Bf6 {[%clk 00:06:51]} {[%emt 00:01:26]}
37. Qxa5 {[%clk 00:13:03]} {[%emt 00:09:19]} Bd4 {[%clk 00:06:00]} {[%emt
00:01:21]} 38. Kh1 {[%clk 00:06:23]} {[%emt 00:07:10]} Qxf2 {[%clk 00:05:53]}
{[%emt 00:00:37]} 39. Qc7 {[%clk 00:05:55]} {[%emt 00:00:58]} Re8 {[%clk
00:03:48]} {[%emt 00:02:36]} 40. Rf1 {[%clk 00:05:11]} {[%emt 00:01:13]} Qe3
{[%clk 00:00:34]} {[%emt 00:03:44]} 41. Bxf7+ {[%clk 00:05:00]} {[%emt
00:00:41]} Kh8 {[%clk 00:29:55]} {[%emt 00:01:09]} 42. Bxe8 {[%clk 00:35:16]}
{[%emt 00:00:14]} Qxe8 {[%clk 00:30:07]} {[%emt 00:00:19]} 43. Qb7 {[%clk
00:25:07]} {[%emt 00:10:36]} Bg7 {[%clk 00:28:19]} {[%emt 00:02:20]} 44. Ne4
{[%clk 00:22:40]} {[%emt 00:02:56]} Qd8 {[%clk 00:28:43]} {[%emt 00:00:07]} 45.
Rc1 {[%clk 00:13:06]} {[%emt 00:10:04]} Qd4 {[%clk 00:28:24]} {[%emt 00:00:49]}
46. a4 {[%clk 00:10:12]} {[%emt 00:03:24]} Qe5 {[%clk 00:26:10]} {[%emt
00:02:42]} 47. Rb1 {[%clk 00:10:01]} {[%emt 00:00:41]} Kh7 {[%clk 00:26:18]}
{[%emt 00:00:23]} 48. Rf1 {[%clk 00:10:26]} {[%emt 00:00:04]} Qd4 {[%clk
00:25:53]} {[%emt 00:00:56]} 49. Nf6+ {[%clk 00:10:49]} {[%emt 00:00:08]} 1-0

[Event "Sverigemastarklassen 2025"]
[Site "Uppsala, Sweden"]
[Date "2025.07.03"]
[Round "6.4"]
[White "Falkevall, Axel"]
[Black "Sorensen, Hampus"]
[Result "0-1"]
[TimeControl "90 min for 40 move + 30 min with an increment of 30 sec starting move 1"]
[WhiteTitle "FM"]
[BlackTitle "IM"]
[WhiteFideId "1735560"]
[BlackFideId "8703884"]
[WhiteElo "2372"]
[BlackElo "2432"]

1. d4 {[%clk 01:30:57]} {[%emt 00:00:02]} Nf6 {[%clk 01:30:17]} {[%emt
00:00:43]} 2. c4 {[%clk 01:31:18]} {[%emt 00:00:10]} e6 {[%clk 01:30:20]}
{[%emt 00:00:27]} 3. Nf3 {[%clk 01:31:27]} {[%emt 00:00:21]} Bb4+ {[%clk
01:29:21]} {[%emt 00:01:29]} 4. Nbd2 {[%clk 01:30:47]} {[%emt 00:01:09]} O-O
{[%clk 01:29:32]} {[%emt 00:00:19]} 5. a3 {[%clk 01:31:13]} {[%emt 00:00:05]}
Be7 {[%clk 01:29:54]} {[%emt 00:00:09]} 6. e4 {[%clk 01:30:23]} {[%emt
00:01:19]} d6 {[%clk 01:30:07]} {[%emt 00:00:18]} 7. Be2 {[%clk 01:30:12]}
{[%emt 00:00:41]} e5 {[%clk 01:29:59]} {[%emt 00:00:38]} 8. d5 {[%clk
01:23:20]} {[%emt 00:07:21]} c6 {[%clk 01:16:04]} {[%emt 00:14:26]} 9. O-O
{[%clk 01:21:17]} {[%emt 00:02:32]} b5 {[%clk 01:07:26]} {[%emt 00:09:08]} 10.
b3 {[%clk 01:11:13]} {[%emt 00:10:35]} bxc4 {[%clk 01:05:26]} {[%emt 00:02:30]}
11. bxc4 {[%clk 01:11:23]} {[%emt 00:00:20]} Na6 {[%clk 01:04:42]} {[%emt
00:01:14]} 12. Ne1 {[%clk 01:04:05]} {[%emt 00:07:47]} Nc5 {[%clk 01:00:12]}
{[%emt 00:05:01]} 13. Qc2 {[%clk 01:01:21]} {[%emt 00:03:13]} cxd5 {[%clk
00:52:52]} {[%emt 00:07:50]} 14. exd5 {[%clk 00:58:56]} {[%emt 00:02:55]} Bd7
{[%clk 00:45:55]} {[%emt 00:07:28]} 15. Nd3 {[%clk 00:55:42]} {[%emt 00:03:43]}
Bf5 {[%clk 00:45:15]} {[%emt 00:01:11]} 16. Qc3 {[%clk 00:55:14]} {[%emt
00:00:58]} Bxd3 {[%clk 00:45:19]} {[%emt 00:00:25]} 17. Bxd3 {[%clk 00:55:34]}
{[%emt 00:00:10]} e4 {[%clk 00:34:20]} {[%emt 00:11:29]} 18. Bc2 {[%clk
00:55:30]} {[%emt 00:00:35]} Nfd7 {[%clk 00:28:18]} {[%emt 00:06:31]} 19. Qh3
{[%clk 00:43:58]} {[%emt 00:12:01]} f5 {[%clk 00:27:41]} {[%emt 00:01:08]} 20.
Nb3 {[%clk 00:41:55]} {[%emt 00:02:33]} Nxb3 {[%clk 00:26:05]} {[%emt
00:02:06]} 21. Bxb3 {[%clk 00:40:55]} {[%emt 00:01:30]} Bg5 {[%clk 00:24:30]}
{[%emt 00:02:04]} 22. f4 {[%clk 00:33:42]} {[%emt 00:07:43]} Bf6 {[%clk
00:20:57]} {[%emt 00:04:03]} 23. Rb1 {[%clk 00:33:36]} {[%emt 00:00:37]} Bd4+
{[%clk 00:20:26]} {[%emt 00:01:01]} 24. Kh1 {[%clk 00:33:52]} {[%emt 00:00:14]}
Nc5 {[%clk 00:20:48]} {[%emt 00:00:08]} 25. Bc2 {[%clk 00:33:15]} {[%emt
00:01:07]} Qf6 {[%clk 00:19:27]} {[%emt 00:01:51]} 26. Bd2 {[%clk 00:31:00]}
{[%emt 00:02:45]} Rae8 {[%clk 00:18:29]} {[%emt 00:01:28]} 27. Be3 {[%clk
00:30:53]} {[%emt 00:00:37]} Bxe3 {[%clk 00:16:47]} {[%emt 00:02:12]} 28. Qxe3
{[%clk 00:31:13]} {[%emt 00:00:09]} Rb8 {[%clk 00:13:46]} {[%emt 00:03:31]} 29.
Rb4 {[%clk 00:28:29]} {[%emt 00:03:14]} a5 {[%clk 00:14:02]} {[%emt 00:00:15]}
30. Rbb1 {[%clk 00:28:55]} {[%emt 00:00:04]} Rb2 {[%clk 00:13:26]} {[%emt
00:01:06]} 31. Qd2 {[%clk 00:28:56]} {[%emt 00:00:28]} Re8 {[%clk 00:10:50]}
{[%emt 00:03:06]} 32. Rfe1 {[%clk 00:27:44]} {[%emt 00:01:42]} h6 {[%clk
00:10:52]} {[%emt 00:00:28]} 33. h3 {[%clk 00:26:42]} {[%emt 00:01:32]} a4
{[%clk 00:10:01]} {[%emt 00:01:21]} 34. Rg1 {[%clk 00:24:38]} {[%emt 00:02:34]}
Reb8 {[%clk 00:07:28]} {[%emt 00:03:03]} 35. Rbe1 {[%clk 00:24:15]} {[%emt
00:00:53]} R8b3 {[%clk 00:06:29]} {[%emt 00:01:29]} 0-1

[Event "Sverigemastarklassen 2025"]
[Site "Uppsala, Sweden"]
[Date "2025.07.03"]
[Round "6.5"]
[White "Seo, Jung Min"]
[Black "Blomqvist, Erik"]
[Result "1/2-1/2"]
[TimeControl "90 min for 40 move + 30 min with an increment of 30 sec starting move 1"]
[WhiteTitle "IM"]
[BlackTitle "GM"]
[WhiteFideId "1734687"]
[BlackFideId "1709437"]
[WhiteElo "2472"]
[BlackElo "2448"]

1. d4 {[%clk 01:30:59]} d5 {[%clk 01:30:52]} {[%emt 00:00:08]} 2. c4 {[%clk
01:31:28]} {[%emt 00:00:02]} c6 {[%clk 01:31:13]} {[%emt 00:00:08]} 3. cxd5
{[%clk 01:31:56]} {[%emt 00:00:01]} cxd5 {[%clk 01:31:35]} {[%emt 00:00:08]} 4.
Nc3 {[%clk 01:32:25]} {[%emt 00:00:01]} Nf6 {[%clk 01:31:54]} {[%emt 00:00:11]}
5. Bf4 {[%clk 01:32:53]} {[%emt 00:00:02]} Nc6 {[%clk 01:32:11]} {[%emt
00:00:13]} 6. e3 {[%clk 01:33:22]} {[%emt 00:00:01]} Bf5 {[%clk 01:29:56]}
{[%emt 00:02:44]} 7. Nf3 {[%clk 01:33:20]} {[%emt 00:00:33]} e6 {[%clk
01:30:13]} {[%emt 00:00:14]} 8. Qb3 {[%clk 01:33:12]} {[%emt 00:00:38]} Bb4
{[%clk 01:29:09]} {[%emt 00:01:32]} 9. Bb5 {[%clk 01:33:30]} {[%emt 00:00:13]}
O-O {[%clk 01:19:47]} {[%emt 00:09:52]} 10. O-O {[%clk 01:33:53]} {[%emt
00:00:08]} Bxc3 {[%clk 01:16:52]} {[%emt 00:03:24]} 11. Bxc6 {[%clk 01:34:17]}
{[%emt 00:00:07]} Bxb2 {[%clk 01:15:26]} {[%emt 00:01:56]} 12. Bxb7 {[%clk
01:33:15]} {[%emt 00:01:31]} Bxa1 {[%clk 01:14:48]} {[%emt 00:01:09]} 13. Rxa1
{[%clk 01:33:30]} {[%emt 00:00:14]} Rc8 {[%clk 01:07:02]} {[%emt 00:08:16]} 14.
Bxc8 {[%clk 01:29:23]} {[%emt 00:04:38]} Qxc8 {[%clk 01:07:28]} {[%emt
00:00:04]} 15. Qb2 {[%clk 01:26:33]} {[%emt 00:03:20]} Qa6 {[%clk 01:03:20]}
{[%emt 00:04:37]} 16. Rc1 {[%clk 01:26:46]} {[%emt 00:00:17]} Rc8 {[%clk
00:56:41]} {[%emt 00:07:09]} 17. Rxc8+ {[%clk 01:27:04]} {[%emt 00:00:13]} Qxc8
{[%clk 00:57:08]} {[%emt 00:00:02]} 18. Qb8 {[%clk 01:27:13]} {[%emt 00:00:19]}
Qxb8 {[%clk 00:57:18]} {[%emt 00:00:22]} 19. Bxb8 {[%clk 01:27:42]} {[%emt
00:00:02]} Bb1 {[%clk 00:55:10]} {[%emt 00:02:37]} 20. Bxa7 {[%clk 01:28:01]}
{[%emt 00:00:12]} Bxa2 {[%clk 00:55:35]} {[%emt 00:00:04]} 21. Bc5 {[%clk
01:28:18]} {[%emt 00:00:12]} Ne4 {[%clk 00:54:58]} {[%emt 00:01:07]} 22. Bb4
{[%clk 01:28:45]} {[%emt 00:00:04]} h5 {[%clk 00:54:59]} {[%emt 00:00:29]} 23.
Nd2 {[%clk 01:29:10]} {[%emt 00:00:05]} Nxd2 {[%clk 00:55:25]} {[%emt
00:00:04]} 24. Bxd2 {[%clk 01:29:38]} {[%emt 00:00:02]} Bc4 {[%clk 00:55:32]}
{[%emt 00:00:22]} 25. Bc3 {[%clk 01:30:06]} {[%emt 00:00:02]} Ba2 {[%clk
00:55:57]} {[%emt 00:00:05]} 26. Bd2 {[%clk 01:30:34]} {[%emt 00:00:03]} Bc4
{[%clk 00:56:24]} {[%emt 00:00:03]} 27. Bc3 {[%clk 01:31:02]} {[%emt 00:00:02]}
Ba2 {[%clk 00:56:50]} {[%emt 00:00:03]} 28. Bd2 {[%clk 01:31:30]} {[%emt
00:00:03]} Bc4 {[%clk 00:57:15]} {[%emt 00:00:04]} 29. Bc3 {[%clk 01:31:57]}
{[%emt 00:00:03]} Ba2 {[%emt 00:00:05]} 1/2-1/2